Cogmind - Beta 11 X10 @@@ ROGUE MODE // 2022.02.26 @ 14:36:50 Player: maxwell Result: Destroyed by D-53 Grenadier with Mini Grenade Launcher Performance ------------- Evolutions (0) 0 Regions Visited (2) 400 Robots Destroyed (25) 125 Value Destroyed (460) 460 Prototype IDs (0) 0 Alien Tech Used (0) 0 Bonus (60) 60 TOTAL SCORE: 1045 Bonus ------- Follower Combat Kills 60 Cogmind --------- Core Integrity 0/250 Matter 450/450 Energy 119/125 System Corruption 0% Temperature Cool (0) Movement Rolling (135) Ox3 Location -10/Mines Parts ------- > --- POWER (1) -------- Light Ion Engine > --- PROPULSION (2) --- Wheel Compact Wheel > --- UTILITY (2) ------ Huge Storage Unit Large Matter Pod > --- WEAPON (2) ------- EM Pulse Gun > --- INVENTORY (25) --- Wheel Armored Wheel Armored Wheel Armored Wheel Armored Wheel Armored Wheel Armored Wheel Armored Wheel Armored Wheel Disposable Heat Sink Huge Storage Unit Huge Storage Unit EM Pulse Gun EM Pulse Gun EM Pulse Gun Light Assault Rifle Rocket Launcher Hammer Peak State ------------ > --- POWER ------------ Light Ion Engine > --- PROPULSION ------- Light Treads Compact Wheel > --- UTILITY ---------- High-capacity Storage Unit Light Armor Plating > --- WEAPON ----------- Assault Rifle Rocket Launcher > --- INVENTORY -------- Wheel Wheel Armored Wheel Armored Wheel Armored Wheel Armored Wheel Armored Wheel Armored Wheel Armored Wheel Armored Wheel Disposable Heat Sink Small Storage Unit Large Matter Pod Structural Scanner Assault Rifle Light Assault Rifle Light Assault Rifle Hammer [Rating: 10] Favorites ----------- Power Light Ion Engine Engine Light Ion Engine Propulsion Light Treads Treads Light Treads Wheel Compact Wheel Utility Huge Storage Unit Device Structural Scanner Storage Huge Storage Unit Protection Light Armor Plating Weapon Assault Rifle Energy Gun EM Pulse Gun Ballistic Gun Assault Rifle Launcher Rocket Launcher Build | -11 -10 -10 ------- Run | Scr Mat Min Slots Evolved . | . . . Power . | . . . Propulsion . | . . . Utility . | . . . Weapon . | . . . Parts Attached 22 | 6 14 2 Power 2 | 1 1 . Engine 2 | 1 1 . Core . | . . . Reactor . | . . . Propulsion 4 | 2 2 . Treads 2 | 2 . . Leg . | . . . Wheel 2 | . 2 . Hover . | . . . Flight . | . . . Utility 7 | 1 5 1 Device 2 | . 2 . Storage 4 | 1 2 1 Processor . | . . . Hackware . | . . . Protection 1 | . 1 . Artifact . | . . . Weapon 9 | 2 6 1 Energy Gun 1 | . . 1 Energy Cannon . | . . . Ballistic Gun 6 | 2 4 . Ballistic Cannon . | . . . Launcher 2 | . 2 . Special Weapon . | . . . Impact Weapon . | . . . Slashing Weapon . | . . . Piercing Weapon . | . . . Special Melee Weapon . | . . . Unidentified Prototypes . | . . . Parts Lost 6 | . 3 3 Power . | . . . Propulsion 1 | . 1 . Utility 2 | . 1 1 Weapon 3 | . 1 2 Highest Loss Streak 2 | . 2 2 To Critical Strikes . | . . . Average Slot Usage (%) 98 | . 97 100 Engine 14 | . 14 14 Treads 10 | . 20 . Wheel 16 | . 6 28 Device 3 | . 6 . Storage 20 | . 14 27 Protection 3 | . 6 . Energy Gun 6 | . . 12 Ballistic Gun 21 | . 27 15 Naked Turns . | . . . Heaviest Build 89 | 13 87 89 Greatest Support 40 | 40 40 26 Greatest Overweight (x) 3 | . 3 3 Average Overweight (x) 2 | . 1 3 Largest Inventory Capacity 25 | 8 25 25 Average Capacity 21 | 7 20 25 Most Carried 20 | 3 20 20 Average Carried 14 | 2 12 18 Final Capacity 25 | 8 25 25 Final Carried 20 | 3 20 18 Class Distribution -------------------- 100% | Mutant Dominant Class ---------------- Mutant | -10/Materials Mutant | -10/Mines Resources | -11 -10 -10 ----------- Run | Scr Mat Min Matter Collected 954 | 142 490 322 Remotely . | . . . Salvage Created 682 | . 563 119 Parts 50 | . 41 9 Haulers Intercepted 1 | . 1 . Recyclers Shooed 1 | . 1 . Parts Field Recycled . | . . . Retrieved Matter . | . . . Parts Self-Destructed . | . . . Prevented . | . . . Kills | -11 -10 -10 ------- Run | Scr Mat Min Combat Hostiles Destroyed 18 | . 16 2 Guns 14 | . 12 2 AOE 4 | . 4 . Classes Destroyed 7 | . 7 . Worker 1 | . 1 . Builder 2 | . 1 1 Hauler 1 | . 1 . Recycler 2 | . 2 . Watcher 1 | . 1 . Swarmer 9 | . 9 . Grunt 9 | . 7 2 Best Kill Streak 8 | . 8 2 Combat Bots Only 7 | . 7 2 Max Kills in Single Turn 4 | . 4 1 Gunslinging 1 | . 1 . Exploded 3 | . 3 . Melee . | . . . Uniques/NPCs Destroyed . | . . . Combat | -11 -10 -10 -------- Run | Scr Mat Min Damage Taken 1100 | . 840 260 Core 269 | . 190 79 Absorbed by Shields . | . . . Core Remaining (%) 100 | 100 . . Volleys Fired 79 | . 66 13 Largest 2 | . 2 2 Hottest 60 | . 40 60 Shots Fired 153 | . 128 25 Gun 149 | . 124 25 Cannon . | . . . Launcher 4 | . 4 . Special . | . . . Kinetic 144 | . 124 20 Thermal . | . . . Explosive 4 | . 4 . Electromagnetic 5 | . . 5 Robot Hit Streak 7 | . 7 6 Robot Miss Streak 8 | . 8 3 Penetration Max . | . . . Secondary Targets 3 | . 3 . Max Gunslinging Chain 1 | . 1 . Shots Hit Robots 82 | . 66 16 Core Hits 40 | . 33 7 Critical Kills . | . . . Critical Parts Destroyed . | . . . Critical Strikes . | . . . Melee Attacks . | . . . Impact . | . . . Slashing . | . . . Piercing . | . . . Sneak Attacks . | . . . Combat Hostiles . | . . . Follow-up Attacks . | . . . Damage Inflicted 1389 | . 1215 174 Guns 958 | . 784 174 Cannons . | . . . Explosions 427 | . 427 . Melee . | . . . Ramming 4 | . 4 . Kinetic 902 | . 784 118 Thermal . | . . . Explosive 427 | . 427 . Electromagnetic 56 | . . 56 Impact . | . . . Slashing . | . . . Piercing . | . . . Highest Corruption . | . . . Average Corruption . | . . . Corruption Purged . | . . . Corruption Blocked . | . . . Overload Shots . | . . . Overflow Damage 3 | . 3 . Projectiles . | . . . Explosions 3 | . 3 . Melee . | . . . Knockbacks . | . . . Impact . | . . . Kinetic . | . . . Secondary . | . . . Self-Inflicted Damage 18 | . 18 . Shots 1 | . 1 . Rammed 1 | . 1 . Targets Rammed 1 | . 1 . Kicked . | . . . Crushed . | . . . Highest Temperature 41 | . 16 41 Average Temperature 9 | . 6 16 Received Heat Transfer 300 | . 198 102 Siege Activations . | . . . Robots Corrupted . | . . . Combat Hostiles . | . . . Parts Fried . | . . . Impact Corruptions . | . . . Robots Melted . | . . . Combat Hostiles . | . . . Parts Melted . | . . . Heat Transferred . | . . . Parts Sabotaged . | . . . Parts Stolen . | . . . Parts Stripped . | . . . Power Chain Reactions . | . . . Missiles Intercepted . | . . . Alert | -11 -10 -10 ------- Run | Scr Mat Min Peak Influence 350 | . 350 160 Initial 85 | . . 85 Average 123 | . 183 65 Maximum Alert Level 1 | . 1 . Low Security (%) 76 | 100 54 100 Level 1 23 | . 45 . Level 2 . | . . . Level 3 . | . . . Level 4 . | . . . Level 5 . | . . . High Security . | . . . Max Security . | . . . Squads Dispatched 4 | . 4 . Investigation 2 | . 2 . Extermination . | . . . Reinforcement 2 | . 2 . Assault . | . . . Garrison . | . . . Intercept . | . . . Construction Impeded . | . . . Haulers Reinforced . | . . . Active Scanning Responses . | . . . Cargo Convoy Interrupts . | . . . Stealth | -11 -10 -10 --------- Run | Scr Mat Min Distress Signals 5 | . 3 2 Communications Jammed . | . . . Distress Signals . | . . . Times Spotted 35 | . 28 7 Peak Tracking Total 5 | . 5 2 Tactical Retreats 2 | . 1 1 Traps | -11 -10 -10 ------- Run | Scr Mat Min Traps Triggered 1 | . 1 . Indirectly . | . . . Trap Hack Attempts . | . . . Triggered . | . . . Disarmed . | . . . Reprogrammed . | . . . Reused . | . . . Traps Extracted . | . . . Installed . | . . . Triggered . | . . . Machines | -11 -10 -10 ---------- Run | Scr Mat Min Machines Disabled 1 | . 1 . Max in Single Turn 1 | . 1 . Machines Sabotaged . | . . . Garrisons Compromised . | . . . Overloaded Fab Kills . | . . . Hacking | -11 -10 -10 --------- Run | Scr Mat Min Machines Accessed 4 | . 4 . Terminals 2 | . 2 . Fabricators . | . . . Repair Stations . | . . . Recycling Units 2 | . 2 . Scanalyzers . | . . . Garrison Access . | . . . Total Hacks 10 | . 10 . Successful 9 | . 9 . Failed 1 | . 1 . Catastrophic . | . . . Database Lockouts . | . . . Manual 9 | . 9 . Terminals 6 | . 6 . Fabricators . | . . . Repair Stations . | . . . Recycling Units 4 | . 4 . Scanalyzers . | . . . Garrison Access . | . . . Terminal Hacks 5 | . 5 . Part Schematic 1 | . 1 . Robot Analysis 3 | . 3 . Terminal Index 1 | . 1 . Fabricator Hacks . | . . . Repair Station Hacks . | . . . Recycling Unit Hacks 2 | . 2 . Retrieve Components 2 | . 2 . Scanalyzer . | . . . Garrison Access Hacks . | . . . Unauthorized Hacks 2 | . 2 . Terminals . | . . . Fabricators . | . . . Repair Stations . | . . . Recycling Units 2 | . 2 . Tunnel 2 | . 2 . Scanalyzers . | . . . Garrison Access . | . . . Data Cores Recovered . | . . . Used . | . . . Hacking Detections 1 | . 1 . Full Trace Events . | . . . Feedback Events . | . . . Feedback Blocked . | . . . Robot Schematics Acquired . | . . . Robots Built . | . . . Authchips . | . . . Time . | . . . Total Robot Build Rating . | . . . Part Schematics Acquired 1 | . 1 . Parts Built . | . . . Authchips . | . . . Time . | . . . Total Part Build Rating . | . . . Parts Repaired . | . . . Time . | . . . Parts Recycled . | . . . Recycled Matter . | . . . Retrieved Matter . | . . . Retrieved Components 16 | . 16 . Parts Scanalyzed . | . . . Part Schematics Acquired . | . . . Parts Damaged . | . . . Bothacking | -11 -10 -10 ------------ Run | Scr Mat Min Used RIF Installer . | . . . Robots Hacked . | . . . Non-combat . | . . . Combat . | . . . Robot Hacks Applied . | . . . Relay Couplers Released . | . . . Fabnet Peak Effective % . | . . . Robots Rewired . | . . . Allies Hacked . | . . . Hacks Repelled . | . . . Allies | -11 -10 -10 -------- Run | Scr Mat Min Total Allies 1 | . . 1 Largest Group 1 | . . 1 Highest-Rated Group 31 | . . 31 Highest-Rated Ally 31 | . . 31 Total Orders . | . . . Ally Attacks 8 | . . 8 Total Damage 105 | . . 105 Kills 2 | . . 2 Allies Corrupted . | . . . Allies Melted . | . . . Intel | -11 -10 -10 ------- Run | Scr Mat Min Robot Analysis Total 3 | . 3 . Derelict Logs Recovered 1 | . . 1 Drone Launches . | . . . Drone Recoveries . | . . . Exploration | -11 -10 -10 ------------- Run | Scr Mat Min Turns Passed 1963 | 72 1006 885 Spaces Moved 890 | 41 364 485 Core 4 | 4 . . Treads 267 | 37 230 . Legs . | . . . Wheels 619 | . 134 485 Hover . | . . . Flight . | . . . Fastest Speed 50 | 50 130 135 Average Speed 161 | 149 198 135 Slowest Speed 320 | 160 320 135 Overloaded Moves . | . . . Propulsion Burnouts . | . . . Robots Hopped . | . . . Cave-ins Triggered . | . . . Exploration Rate (%) 52 | 3 62 92 Regions Visited 2 Branch Regions 1 Pre-discovered Areas 2 | . 2 . Known Exits Taken . | . . . Unknown Exits Taken 2 | 1 1 . Scrap Searched 1 | . . 1 Spaces Dug 5 | . 5 . Terrain Destroyed 31 | . 31 . Melee . | . . . Projectile . | . . . AOE 31 | . 31 . Terrain Rammed . | . . . Walls Destroyed . | . . . Machines Disabled . | . . . Actions | -11 -10 -10 --------- Run | Scr Mat Min Total 1260 | 49 518 693 Wait 242 | . 49 193 Move 888 | 40 363 485 Hop . | . . . Pick Up 24 | 3 21 . Fast Attach 9 | 6 3 . Attach 6 | . 4 2 Detach . | . . . Swap 7 | . 7 . Drop 4 | . 4 . Fire 79 | . 66 13 Melee . | . . . Ram . | . . . Kick . | . . . Crush 1 | . 1 . Escape Stasis . | . . . Rewire . | . . . Trap . | . . . Miscellaneous . | . . . Route ------- -11/Scrapyard -10/Materials (discovered 3 exits: *Mat / [*Min x2]) -10/Mines (discovered 2 exits: *Mat x2) History --------- Turn | Location | Event 38 | -11/Scrapyard | Discovered new exit (range 15) 73 | -11/Scrapyard | Entered Materials 304 | -10/Materials | Build established: Mutant 337 | -10/Materials | Destroyed 7 combat bots 565 | -10/Materials | Discovered new exit (range 8) 752 | -10/Materials | Core integrity fell below 50% 914 | -10/Materials | Discovered new exit (range 7) 982 | -10/Materials | Discovered new exit (range 7) 1079 | -10/Materials | Entered Mines 1093 | -10/Mines | Assembled infested the area 1125 | -10/Mines | Core integrity fell below 20% 1378 | -10/Mines | Discovered new exit (range 12) 1383 | -10/Mines | Identified exit to Materials 1623 | -10/Mines | Received a Mining Laser from a helpful Derelict 1964 | -10/Mines | Destroyed by D-53 Grenadier with Mini Grenade Launcher Last Messages --------------- 01499_ K-01 Serf collects debris. 01621_ A derelict emerges from the shadows: "What are you doing alone down here?" 01623_ 6H-805(g): "And why aren't you carrying a mining laser?! Certainly you don't want THEM to uncover you when the ceiling comes crashing down? Here, take my spare." 01626_ 6H-805(g): "You're apparently new around these parts, I'll cover you." 01629_ 6H-805(g): "Mining lasers are a lot more useful than you might think..." 01706_ 6H-805(g) suffers critical hit (Burn). 01716_ Acquired 47 matter. 01719_ Acquired 20 matter. 01745_ K-01 Serf collects debris. 01870_ U-05 Engineer destroyed. 01872_ Acquired 1 matter. 01879_ 6H-805(g): "You look like you can take it from here!" 01879_ 6H-805(g) slips back into the shadows. 01963_ Lgt. Assault Rifle destroyed. 01964_ The unstable cave ceiling collapses. Map ----- +----------------------------------------------------+ | ##### # # # | | #### [ # # ### | | ???## #### ##?# | | ???# ## ### ##?## | | ##?# ### #?# ##### | | ### ###?# ## ### #### ## | | ## #???# ##?#### ### ## # # | | ## #??# ##?????## ##?# # # | | #? ##???????# #??### ####### | | ###### ##????????## #????# " | | ##### %????????## ##????# | | ?????????####?????## #### ## | | % #????????? ##??????????## ## ## # | | ####### #????????# #???????????##### ? ### | | #???# #???##### ????????????????### ??# | | ## #????# #??## ??????????####?????# ??# | | ?# #?????? ???## % ??????????## ##??####### | | ?# #????????????# % #??????###### #??# % | | ?# #????????????# % #??????## #### | | ## ########?????#! *d##?????# = | | ## =%=#?????#%%*= ##????# % % % | | #########!#????##%""" d #???# ## ##### | | ????????#!######k """ ?###% ### ##???# " " | | ????????#%!%%==% """ ## ##?# #????# """ " | | ????????# #####= k #??# ##????# """ " | | ????????# #???## @ #??###?????# | | ????????# ????###### ##??????????# | | #??????? ?????????## ##???????????# | | ##?????? ??????????# #????????????######## | | ###????# ??????????### #???????????????????? | | ##???## ???????????#### #???????????????????? | | #?????# ??????????????####???????????????????? | | ## #####??#?????????????????????????????????????? | | ??## ##???????????????????????????????????????? | | ??## #???????????????????????????????????????? | | ### #???????????????????????????????????????? | | #???????????????????????????????????????? | | #???????????????????????????????????????? | | #???????????????????????????????????????? | | #???????????????????????????????????????? | | ## #??????????????????????????????????????? | | ### #?????????????????????????????????????? | | ??# #????????????????????????????????????? | | ??# #????????????????????????????????????? | | ??# ## ##????????????????????????????????????? | | ??## ##?###?????????????????????????????????????? | | ????###??????????????????????????????????????????? | | ?????????????????????????????????????????????????? | | | | | +----------------------------------------------------+ Best States ------------- Heat Dissipation 25 Energy Generation 10 Energy Capacity 250 Matter Stores 450 Matter Capacity 450 Sight Range 16 Terrain Scan Density 10 Armor Coverage 150 Evasion (%) 40 Recoil Reduction 2 Item Schematics ----------------- Huge Storage Unit | -10/Materials | Hacked Robot Schematics ------------------ None Fabricated ------------ Nothing Alien Tech Used ----------------- None Achievements -------------- None Challenges ------------ None Game ------ Seed ChromaticColdTriangulator Manual? 0 Play Time 00:09:37 Cumulative 171.2 hours Start 2022.02.26 @ 14:29:35 End 2022.02.26 @ 14:36:50 Sessions 1 Manual Loads 0 Difficulty Rogue Special Mode None Game No. 283 Rogue 266 Adventurer 4 Explorer 13 Win Type - Total 8 Types 6/0/0/2/0/0/0/0/0 Lore% 65 Gallery% 82 Achievement% 68 Wizard Run 0 Options --------- ASCII 0 Keyboard 1 Movement Numpad Keybinds 0 Fullscreen 1 Font 18/SmallcapsGlow Map View 76x50 Tactical HUD 1 Map Filters NONE Filters NONE Steam 1 RUN: af6788bc-910f-438d-b595-dc7203c85391